Cogmind - Beta 16 @@@ ROGUE MODE // 2025.11.24 @ 22:38:10 Player: taku_the_hopeless Result: Core destroyed Performance ------------- Evolutions (3) 1500 Regions Visited (5) 1000 Robots Destroyed (73) 365 Value Destroyed (1623) 1623 Prototype IDs (5) 100 Alien Tech Used (0) 0 Bonus (500) 500 TOTAL SCORE: 5088 Bonus ------- Entered DSFs 500 Cogmind --------- Core Integrity 0/700 Matter 58/300 Energy 234/265 System Corruption 0% Temperature Critical (1398) Movement Treading (160) Location -7/DSF Parts ------- > --- POWER (1) -------- Improved Ion Engine > --- PROPULSION (3) --- Improved Medium Treads Improved Medium Treads Improved Medium Treads > --- UTILITY (5) ------ Large Storage Unit Improved Targeting Computer Core Analyzer Hardened Medium Armor Plating Shield Generator > --- WEAPON (4) ------- Autogun Shotgun Improved Assault Rifle Enhanced Autogun > --- INVENTORY (15) --- Nuclear Core Armored Treads Armored Treads Improved Medium Treads Improved Medium Treads High-capacity Battery (250) Compact Matter Pod (0) Hardened Medium Armor Plating Hardened Medium Armor Plating Hardened Medium Armor Plating Shield Generator Flak Cannon Flak Cannon Flak Cannon Grenade Launcher Peak State ------------ > --- POWER ------------ Improved Ion Engine > --- PROPULSION ------- Improved Medium Treads Improved Medium Treads Improved Medium Treads > --- UTILITY ---------- Large Storage Unit Improved Targeting Computer Core Analyzer Hardened Medium Armor Plating Shield Generator > --- WEAPON ----------- Autogun Improved Assault Rifle Improved Assault Rifle Enhanced Autogun > --- INVENTORY -------- Nuclear Core Armored Treads Armored Treads Advanced Treads Improved Medium Treads High-capacity Battery Compact Matter Pod Hardened Medium Armor Plating Hardened Medium Armor Plating Hardened Medium Armor Plating Shield Generator Shotgun Grenade Launcher Chainsword Chainsword [Rating: 45] Favorites ----------- Power Improved Ion Engine Engine Improved Ion Engine Propulsion Light Treads Treads Light Treads Leg Aluminum Leg Utility Targeting Computer Device Shield Generator Storage Large Storage Unit Processor Targeting Computer Hackware Hacking Suite Protection Hardened Medium Armor Plating Weapon Heavy Assault Rifle Energy Gun Improved Medium Laser Ballistic Gun Heavy Assault Rifle Launcher Grenade Launcher Slashing Weapon Chainsword Build | -11 -10 -9 -8 -7 -7 ------- Run | Yrd Mat Mat Mat Fac DSF Slots Evolved 6 | . . 2 2 2 . Power . | . . . . . . Propulsion 1 | . . 1 . . . Utility 3 | . . . 2 1 . Weapon 2 | . . 1 . 1 . Parts Attached 48 | 5 7 15 8 1 12 Power 3 | . 1 2 . . . Engine 3 | . 1 2 . . . Core . | . . . . . . Reactor . | . . . . . . Propulsion 15 | 2 1 6 . . 6 Treads 12 | . . 6 . . 6 Leg 3 | 2 1 . . . . Wheel . | . . . . . . Hover . | . . . . . . Flight . | . . . . . . Utility 12 | 1 1 2 6 1 1 Device 2 | . . . 2 . . Storage 3 | 1 . 2 . . . Processor 3 | . 1 . 1 . 1 Hackware 2 | . . . 1 1 . Protection 2 | . . . 2 . . Artifact . | . . . . . . Weapon 18 | 2 4 5 2 . 5 Energy Gun 1 | . 1 . . . . Energy Cannon . | . . . . . . Ballistic Gun 14 | 2 3 4 2 . 3 Ballistic Cannon . | . . . . . . Launcher 1 | . . 1 . . . Special Weapon . | . . . . . . Impact Weapon . | . . . . . . Slashing Weapon 2 | . . . . . 2 Piercing Weapon . | . . . . . . Special Melee Weapon . | . . . . . . Unidentified Prototypes 2 | . 1 . 1 . . Parts Lost . | . . . . . . Power . | . . . . . . Propulsion . | . . . . . . Utility . | . . . . . . Weapon . | . . . . . . Highest Loss Streak . | . . . . . . To Critical Strikes . | . . . . . . Average Backups 12 | 2 7 11 14 14 14 Power 1 | . 1 1 1 1 1 Propulsion 2 | 1 2 2 3 3 3 Utility 4 | . 2 4 4 6 6 Weapon 3 | . 1 2 4 3 3 Tool/Special . | . . . . . . Unused Backups 29 | . . 8 3 1 17 Power 2 | . . 1 . . 1 Propulsion 8 | . . 2 1 . 5 Utility 14 | . . 4 2 1 7 Weapon 4 | . . 1 . . 3 Tool/Special 1 | . . . . . 1 Average Slot Usage (%) 97 | . 88 97 97 99 99 Engine 8 | . 4 10 9 7 7 Treads 21 | . . 25 26 23 23 Leg 5 | . 28 5 . . . Device 1 | . . . . 7 7 Storage 9 | . 14 11 9 7 7 Processor 10 | . 13 11 9 7 11 Hackware 3 | . . . 8 6 2 Protection 3 | . . . 9 7 7 Ballistic Gun 29 | . 27 33 26 29 28 Peak Build Rating 45 | 5 10 15 25 29 45 Average Rating 18 | 3 6 13 20 28 32 On Entrance 13 | . 5 10 15 24 29 Avg Prop Armor Cover (%) 8 | . . 8 . . 5 Naked Turns . | . . . . . . Heaviest Build 49 | 9 16 36 46 49 49 Greatest Support 90 | 20 20 60 60 60 90 Greatest Overweight (x) 1 | 1 . 1 . . . Average Overweight (x) . | . . . . . . Largest Inventory Capacity 15 | 8 8 15 15 15 15 Average Capacity 12 | 6 8 11 15 15 15 Most Carried 15 | 5 8 15 15 15 15 Average Carried 12 | 2 7 11 14 14 14 Final Capacity 15 | 8 8 15 15 15 15 Final Carried 15 | 5 8 15 15 15 15 Class Distribution -------------------- 40% | Scavenger-Gunner 27% | Gunner 15% | Scavenger-Tank 14% | Mutant Dominant Class ---------------- Mutant | -10/Materials Scavenger-Gunner | -9/Materials Scavenger-Gunner | -8/Materials Scavenger-Tank | -7/Factory Gunner | -7/DSF Resources | -11 -10 -9 -8 -7 -7 ----------- Run | Yrd Mat Mat Mat Fac DSF Matter Collected 2345 | 250 222 768 602 136 367 Remotely . | . . . . . . Salvage Created 2466 | . 372 1040 539 . 515 Parts 159 | . 24 67 38 . 30 Haulers Intercepted 5 | . 1 2 1 . 1 Recyclers Shooed 1 | . . 1 . . . Parts Field Recycled . | . . . . . . Retrieved Matter . | . . . . . . Parts Self-Destructed . | . . . . . . Prevented . | . . . . . . Parts Restored . | . . . . . . Kills | -11 -10 -9 -8 -7 -7 ------- Run | Yrd Mat Mat Mat Fac DSF Combat Hostiles Destroyed 47 | . 6 20 10 . 11 Guns 40 | . 6 16 10 . 8 AOE 7 | . . 4 . . 3 Classes Destroyed 12 | . 5 3 1 . 3 Worker 5 | . . 4 1 . . Builder 1 | . . . 1 . . Hauler 5 | . 1 2 1 . 1 Recycler 6 | . 2 2 2 . . Operator 3 | . 1 2 . . . Watcher 6 | . . 3 3 . . Swarmer 18 | . 3 7 8 . . Cutter 2 | . . . . . 2 Grunt 16 | . 3 8 . . 5 Sentry 7 | . . 5 2 . . Specialist 3 | . . . . . 3 Heavy 1 | . . . . . 1 Best Kill Streak 7 | . 4 7 5 . 3 Combat Bots Only 6 | . 4 6 4 . 3 Max Kills in Single Turn 3 | . 1 3 2 . 2 Gunslinging 1 | . . 1 1 . . Exploded 3 | . . 3 . . 2 Melee . | . . . . . . Uniques/NPCs Destroyed . | . . . . . . Combat | -11 -10 -9 -8 -7 -7 -------- Run | Yrd Mat Mat Mat Fac DSF Hostile Shots Fired 220 | . 31 80 43 . 66 Missed 68 | . 6 27 13 . 22 Hits 152 | . 25 53 30 . 44 Melee 4 | . . . . . 4 Projectile 148 | . 25 53 30 . 40 AOE 1 | . . . . . 1 Critical Strikes 6 | . . . 1 . 5 Damage Taken 2409 | . 246 554 291 . 1318 Core 876 | . 62 66 42 . 706 Absorbed by Shields 225 | . . . . . 225 Regen/Repaired (Parts) 386 | . . 105 240 41 . Core Remaining (%) 87 | 100 75 83 92 . . Volleys Fired 162 | . 32 57 43 1 29 Largest 4 | . 2 3 3 1 4 Hottest 94 | . 40 69 71 25 94 Shots Fired 454 | . 64 167 129 1 93 Gun 446 | . 64 165 129 1 87 Cannon . | . . . . . . Launcher 8 | . . 2 . . 6 Special . | . . . . . . Kinetic 446 | . 64 165 129 1 87 Thermal . | . . . . . . Explosive 8 | . . 2 . . 6 Electromagnetic . | . . . . . . Robot Hit Streak 21 | . 12 21 17 . 14 Robot Miss Streak 7 | . 4 7 6 . 4 Penetration Max . | . . . . . . Secondary Targets 9 | . . 4 4 . 1 Max Gunslinging Chain 1 | . . 1 1 . 1 Shots Hit Robots 268 | . 45 96 68 . 59 Core Hits 124 | . 15 47 27 . 35 Critical Kills . | . . . . . . Critical Parts Destroyed 1 | . . . . . 1 Critical Strikes 1 | . . . . . 1 Destroy 1 | . . . . . 1 Melee Attacks 2 | . . . . . 2 Impact . | . . . . . . Slashing 2 | . . . . . 2 Piercing . | . . . . . . Sneak Attacks . | . . . . . . Combat Hostiles . | . . . . . . Follow-up Attacks . | . . . . . . Damage Inflicted 4613 | 7 583 1622 1127 . 1274 Guns 3993 | . 583 1410 1114 . 886 Cannons . | . . . . . . Explosions 587 | . . 199 . . 388 Melee . | . . . . . . Ramming 33 | 7 . 13 13 . . Kinetic 3993 | . 583 1410 1114 . 886 Thermal . | . . . . . . Explosive 587 | . . 199 . . 388 Electromagnetic . | . . . . . . Impact . | . . . . . . Slashing . | . . . . . . Piercing . | . . . . . . Highest Corruption . | . . . . . . Average Corruption . | . . . . . . Corruption Purged . | . . . . . . Corruption Blocked . | . . . . . . Overload Shots . | . . . . . . Overflow Damage . | . . . . . . Projectiles . | . . . . . . Explosions . | . . . . . . Melee . | . . . . . . Knockbacks . | . . . . . . Impact . | . . . . . . Kinetic . | . . . . . . Secondary . | . . . . . . Self-Inflicted Damage . | . . . . . . Shots . | . . . . . . Rammed 5 | . . 4 1 . . Targets Rammed 8 | 2 . 5 1 . . Kicked 2 | 2 . . . . . Crushed 1 | . . 1 . . . Highest Temperature 1398 | . . 102 100 2 1398 Average Temperature 125 | . . 30 29 2 320 Received Heat Transfer 452 | . 90 147 54 . 161 Effects 28 | . . . . . 28 Interference 7 | . . . . . 7 Matter Decay 3 | . . . . . 3 Short Circuit 1 | . . . . . 1 Damage (minor) 1 | . . . . . 1 Damage (major) 10 | . . . . . 10 Damage (core) 6 | . . . . . 6 Siege Activations . | . . . . . . Martial Activations . | . . . . . . Shielding Activations . | . . . . . . Robots Disrupted . | . . . . . . Combat Hostiles . | . . . . . . Robots Corrupted . | . . . . . . Combat Hostiles . | . . . . . . Parts Fried . | . . . . . . Impact Corruptions . | . . . . . . Robots Melted . | . . . . . . Combat Hostiles . | . . . . . . Parts Melted 1 | . . . . . 1 Heat Transferred . | . . . . . . Parts Sabotaged . | . . . . . . Parts Stolen . | . . . . . . Parts Stripped . | . . . . . . Power Chain Reactions . | . . . . . . Alert | -11 -10 -9 -8 -7 -7 ------- Run | Yrd Mat Mat Mat Fac DSF Maximum Alert Level 1 | . . 1 . . 1 Low Security (%) 83 | 100 100 69 100 100 64 Level 1 16 | . . 30 . . 35 Level 2 . | . . . . . . Level 3 . | . . . . . . Level 4 . | . . . . . . Level 5 . | . . . . . . High Security . | . . . . . . Max Security . | . . . . . . Sterilizations 1 | . . . . . 1 Peak Influence 316 | . 96 313 176 37 316 Initial 107 | . . 9 107 37 4 Average 99 | . 48 116 123 6 143 Influence Increases 1559 | . 183 700 327 37 312 Destroy 0b10 Robot/C 940 | . 120 400 200 . 220 Destroy 0b10 Robot/NC 135 | . 20 65 40 . 10 Destroy Leader 220 | . 22 120 48 . 30 Successful Hack 128 | . 5 66 21 36 . Destroy Structure 46 | . 1 19 3 1 22 Lose Combat Pursuer 90 | . 15 30 15 . 30 Influence Decreases 1243 | . 160 469 497 115 2 Entered New Map 210 | . . 14 147 47 2 Time Decay 1033 | . 160 455 350 68 . Squads Dispatched 8 | . 1 3 . 1 3 Investigation 1 | . . . . 1 . Extermination . | . . . . . . Reinforcement 7 | . 1 3 . . 3 Assault . | . . . . . . Garrison . | . . . . . . Intercept . | . . . . . . Searches Triggered . | . . . . . . Construction Impeded . | . . . . . . Haulers Reinforced . | . . . . . . Active Scanning Responses . | . . . . . . Cargo Convoy Interrupts . | . . . . . . Stealth | -11 -10 -9 -8 -7 -7 --------- Run | Yrd Mat Mat Mat Fac DSF Distress Signals 4 | . . 1 3 . . Communications Jammed . | . . . . . . Distress Signals . | . . . . . . Times Spotted 77 | . 9 33 22 . 13 Peak Tracking Total 6 | . 5 6 4 . 4 Tactical Retreats 5 | . 1 1 1 . 2 Traps | -11 -10 -9 -8 -7 -7 ------- Run | Yrd Mat Mat Mat Fac DSF Traps Triggered 3 | . . 3 . . . Indirectly . | . . . . . . Trap Hack Attempts . | . . . . . . Triggered . | . . . . . . Disarmed . | . . . . . . Reprogrammed . | . . . . . . Reused . | . . . . . . Traps Extracted . | . . . . . . Installed . | . . . . . . Triggered . | . . . . . . Machines | -11 -10 -9 -8 -7 -7 ---------- Run | Yrd Mat Mat Mat Fac DSF Machines Disabled . | . . . . . . Max in Single Turn . | . . . . . . Garrison Access 1 | . . . . 1 . Machines Repaired . | . . . . . . Machines Dismantled . | . . . . . . Machines Sabotaged . | . . . . . . Overloaded Fab Kills . | . . . . . . Hacking | -11 -10 -9 -8 -7 -7 --------- Run | Yrd Mat Mat Mat Fac DSF Machines Accessed 16 | . 2 6 4 4 . Terminals 9 | . 1 3 3 2 . Fabricators . | . . . . . . Repair Stations 3 | . . 1 1 1 . Recycling Units 2 | . 1 1 . . . Scanalyzers 1 | . . 1 . . . Garrison Access 1 | . . . . 1 . Total Hacks 58 | . 7 21 23 7 . Successful 38 | . 5 11 17 5 . Failed 20 | . 2 10 6 2 . Catastrophic 3 | . . . 2 1 . Database Lockouts . | . . . . . . Manual 16 | . 3 8 5 . . Terminals 35 | . 6 13 12 4 . Fabricators . | . . . . . . Repair Stations 16 | . . 3 11 2 . Recycling Units 4 | . 1 3 . . . Scanalyzers 2 | . . 2 . . . Garrison Access 1 | . . . . 1 . Terminal Hacks 11 | . 3 4 2 2 . Prototype ID Bank 2 | . . 2 . . . Open DSF 1 | . . . . 1 . Branch Access Points 1 | . . . 1 . . Locate Traps 2 | . 1 . . 1 . Hauler Manifests 1 | . 1 . . . . Registered Components 1 | . . . 1 . . Zone Layout 3 | . 1 2 . . . Fabricator Hacks . | . . . . . . Repair Station Hacks 14 | . . 2 10 2 . Scan Component 7 | . . 1 5 1 . Repair 7 | . . 1 5 1 . Recycling Unit Hacks 2 | . 1 1 . . . Report Inventory 1 | . 1 . . . . Retrieve Components 1 | . . 1 . . . Scanalyzer 1 | . . 1 . . . Retrieve Study 1 | . . 1 . . . Garrison Access Hacks 1 | . . . . 1 . Seal Access 1 | . . . . 1 . Unauthorized Hacks 9 | . 1 3 5 . . Terminals 9 | . 1 3 5 . . Botnet 5 | . . 2 3 . . Operators 1 | . . . 1 . . Skim 3 | . 1 1 1 . . Fabricators . | . . . . . . Repair Stations . | . . . . . . Recycling Units . | . . . . . . Scanalyzers . | . . . . . . Garrison Access . | . . . . . . Data Cores Recovered . | . . . . . . Used . | . . . . . . Hacking Detections 12 | . 1 5 4 2 . Full Trace Events 2 | . . . 1 1 . Feedback Events . | . . . . . . Feedback Blocked . | . . . . . . Robot Schematics Acquired . | . . . . . . Robots Built . | . . . . . . Authchips . | . . . . . . Time . | . . . . . . Total Robot Build Rating . | . . . . . . Part Schematics Acquired . | . . . . . . Parts Built . | . . . . . . Authchips . | . . . . . . Time . | . . . . . . Total Part Build Rating . | . . . . . . Part Studies Acquired 1 | . . 1 . . . Parts Repaired 7 | . . 1 5 1 . Time 171 | . . 13 142 16 . Parts Recycled . | . . . . . . Recycled Matter . | . . . . . . Retrieved Matter . | . . . . . . Retrieved Components 6 | . . 6 . . . Parts Scanalyzed . | . . . . . . Part Schematics Acquired . | . . . . . . Parts Damaged . | . . . . . . Bothacking | -11 -10 -9 -8 -7 -7 ------------ Run | Yrd Mat Mat Mat Fac DSF Used RIF Installer . | . . . . . . Robots Hacked . | . . . . . . Non-combat . | . . . . . . Combat . | . . . . . . Robot Hacks Applied . | . . . . . . Relay Couplers Released . | . . . . . . Fabnet Peak Effective % . | . . . . . . Robots Rewired . | . . . . . . Allies Hacked . | . . . . . . Hacks Repelled . | . . . . . . Allies | -11 -10 -9 -8 -7 -7 -------- Run | Yrd Mat Mat Mat Fac DSF Total Allies . | . . . . . . Largest Group . | . . . . . . Highest-Rated Group . | . . . . . . Highest-Rated Ally . | . . . . . . Total Orders . | . . . . . . Ally Attacks . | . . . . . . Total Damage . | . . . . . . Kills . | . . . . . . Allies Corrupted . | . . . . . . Allies Melted . | . . . . . . Intel | -11 -10 -9 -8 -7 -7 ------- Run | Yrd Mat Mat Mat Fac DSF Active Infowar (turns) 1 | . . . 1 . . ECM 1 | . . . 1 . . Robot Analysis Total . | . . . . . . Derelict Logs Recovered . | . . . . . . Drone Launches . | . . . . . . Drone Recoveries . | . . . . . . Exploration | -11 -10 -9 -8 -7 -7 ------------- Run | Yrd Mat Mat Mat Fac DSF Turns Passed 3356 | 109 397 1268 793 326 463 Spaces Moved 1630 | 102 218 634 293 189 194 Core 46 | 46 . . . . . Treads 1183 | . . 507 293 189 194 Legs 401 | 56 218 127 . . . Wheels . | . . . . . . Hover . | . . . . . . Flight . | . . . . . . Fastest Speed 50 | 50 120 120 160 160 160 Average Speed 147 | 93 120 153 160 160 160 Slowest Speed 190 | 120 120 190 160 160 160 Overloaded Moves . | . . . . . . Propulsion Burnouts . | . . . . . . Robots Hopped . | . . . . . . Potential Cave-ins . | . . . . . . Cave-ins Triggered . | . . . . . . Exploration Rate (%) 31 | 5 26 48 24 4 84 Regions Visited 5 Branch Regions . Pre-discovered Areas . | . . . . . . Known Exits Taken 1 | . . . . 1 . Unknown Exits Taken 4 | 1 1 1 1 . . Scrap Searched . | . . . . . . Spaces Dug 8 | . . . . . 8 Terrain Destroyed 41 | . . 17 . . 24 Melee 2 | . . . . . 2 Projectile . | . . . . . . AOE 39 | . . 17 . . 22 Terrain Rammed . | . . . . . . Walls Destroyed . | . . . . . . Machines Disabled . | . . . . . . Actions | -11 -10 -9 -8 -7 -7 --------- Run | Yrd Mat Mat Mat Fac DSF Total 2264 | 113 294 810 532 212 303 Wait 275 | . 21 48 160 16 30 Move 1625 | 101 217 633 292 188 194 Hop . | . . . . . . Pick Up 53 | 5 5 21 7 3 12 Fast Attach 30 | 5 4 8 8 1 4 Attach 11 | . 1 4 3 2 1 Detach 2 | . . . 2 . . Swap 37 | . 5 13 7 . 12 Drop 59 | . 9 21 9 1 19 Fire 162 | . 32 57 43 1 29 Melee 2 | . . . . . 2 Ram . | . . . . . . Kick 2 | 2 . . . . . Crush 6 | . . 5 1 . . Escape Stasis . | . . . . . . Rewire . | . . . . . . Trap . | . . . . . . Miscellaneous . | . . . . . . Route ------- -11/Scrapyard -10/Materials -9/Materials -8/Materials (discovered 3 exits: *Fac / *Sto x2) -7/Factory -7/DSF (discovered 1 exit: [*Fac]) History --------- Turn | Location | Event 5 | -11/Scrapyard | Discovered new exit (range 15) 110 | -11/Scrapyard | Entered Materials 307 | -10/Materials | Build established: Mutant 497 | -10/Materials | Discovered new exit (range 5) 507 | -10/Materials | Entered another Materials area 507 | -9/Materials | Evolved 2 slots: Propulsion x1, Weapon x1 1140 | -9/Materials | Build established: Gunner 1224 | -9/Materials | Repaired Lgt. Treads 1458 | -9/Materials | Build established: Scavenger-Gunner 1765 | -9/Materials | Discovered new exit (range 6) 1775 | -9/Materials | Entered another Materials area 1775 | -8/Materials | Evolved 2 slots: Utility x2 1809 | -8/Materials | Identified exit to Storage 1924 | -8/Materials | Repaired Lgt. Treads 1951 | -8/Materials | Repaired Lgt. Treads 1979 | -8/Materials | Repaired Lgt. Treads 2025 | -8/Materials | Repaired Hvy. Assault Rifle 2058 | -8/Materials | Repaired Hvy. Assault Rifle 2502 | -8/Materials | Discovered new exit (range 10) 2568 | -8/Materials | Entered Factory 2568 | -7/Factory | Evolved 2 slots: Utility x1, Weapon x1 2731 | -7/Factory | Repaired Autogun 2847 | -7/Factory | Build established: Scavenger-Tank 2894 | -7/Factory | Identified exit to DSF 2894 | -7/Factory | Entered DSF 2930 | -7/DSF | Additional patrols routed to DSF 3231 | -7/DSF | Sterilization system engaged 3251 | -7/DSF | Ambient heat levels rising (+10) 3266 | -7/DSF | Ambient heat levels rising (+10) 3281 | -7/DSF | Ambient heat levels rising (+10) 3296 | -7/DSF | Ambient heat levels rising (+10) 3311 | -7/DSF | Ambient heat levels rising (+10) 3326 | -7/DSF | Ambient heat levels rising (+10) 3341 | -7/DSF | Ambient heat levels rising (+10) 3342 | -7/DSF | Core integrity fell below 50% 3346 | -7/DSF | Discovered new exit (range 16) 3350 | -7/DSF | Build established: Gunner 3351 | -7/DSF | Core integrity fell below 20% 3356 | -7/DSF | Ambient heat levels rising (+10) 3358 | -7/DSF | Core destroyed Last Messages --------------- 03350_ S-27 Virus heat damages Lgt. Nuclear Core. 03350_ S-27 Virus overheating. 03351_ Overheating: Core damaged (-84). 03351_ S-27 Virus heat spikes uncontrollably. 03351_ S-27 Virus overheating. 03352_ Overheating: System interference. 03352_ Shotgun temporarily disabled. 03352_ S-27 Virus overheating. 03353_ S-27 Virus heat damages Lgt. Nuclear Core. 03353_ S-27 Virus overheating. 03354_ S-27 Virus heat spikes uncontrollably. 03354_ S-27 Virus overheating. 03356_ ALERT: Ambient heat levels +10. 03356_ S-27 Virus overheating. 03357_ Overheating: Enh. Autogun damaged (-22). 03357_ Overheating: Imp. Medium Treads damaged (-32). 03357_ Overheating: Imp. Ion Engine damaged (-16). 03357_ Overheating: Shield Generator damaged (-7). 03357_ S-27 Virus overheating. 03358_ Overheating: Core damaged (-91). Map ----- +----------------------------------------------------+ | | | | | | | | | | | | | | | | | | | | | | | | | | | | | | | ???????????????????????????????????????????? | | ???????????????????????????????????????????? | | ???????????????????????????????????????????? | | ???????????????????????????????????????????? | | ???""??????????????????????????????????????? | | ???#"#?????????????????????????????????????? | | ####"##???????#########????????????????????? | | #"""""######### !!########????"????????? | | #"""""##!!#!!!# !!#***#**##"""""#??????? | | #"" %[[s<""#??????? | | """ @ **= """??????? | | #"" ##!!# ### ### #**##%= ""#??????? | | ### ###!!# ### ### #??#?? ??????????? | | ?## ########## ^[[#####????# ?????????? | | ?#! !!#??????# [[#????????* ?????????? | | ?#! !!#??????# [[#????????* ?????????? | | ?## ###??????### ###???????## #????????? | | ?# !!#??????#[[ !!#????????* *????????? | | ?# !!#???????[[ ^ !!#?###????* *????????? | | ?# !!#???????[[ !!?# ####?*[%*????????? | | ### ############ ### # # ### ###??????? | | # ##===#!!!### ###===#! !## #??????? | | # ##===#!!!## % === !!!##/|||#??????? | | # ^ = %#??????? | | # ==! =%*|#??????? | | # [/ = ! ^% /|*#??????? | | # ## /]#===## = # ## / #??????? | | # ## ]]#= =### = ##!!!#????# = #??????? | | ### ############ !*#######??### ###??????? | | ??! ????????#!! =!!!#??????#/ /#???????? | | ?#! ????????#!!! !!!#??????#/ /#???????? | | ?#! ????????#!! !!#??????#/ = =#???????? | | ?## #????????### "##?????#### !##???????? | | ?? ?????????# #?????#" [ !#???????? | | ?? ?????????# #?????#/ / !#???????? | +----------------------------------------------------+ Best States ------------- Heat Dissipation 34 Energy Generation 12 Energy Capacity 265 Matter Stores 300 Matter Capacity 300 Sight Range 16 Terrain Scan Density 10 Armor Coverage 225 Evasion (%) 55 Targeting Accuracy 6 Core Analysis 6 Recoil Reduction 3 Offensive Hacking 10 Item Schematics ----------------- None Robot Schematics ------------------ None Fabricated ------------ Nothing Repaired ---------- Lgt. Treads | 25% | -9/Materials Lgt. Treads | 69% | -8/Materials Lgt. Treads | 64% | -8/Materials Lgt. Treads | 65% | -8/Materials Hvy. Assault Rifle | 42% | -8/Materials Hvy. Assault Rifle | 71% | -8/Materials Autogun | 64% | -7/Factory Studied --------- Grenade Launcher | -9/Materials | Hacked Alien Tech Used ----------------- None Achievements -------------- None Challenges ------------ None Game ------ Seed ZipChromionTendrils Manual? 0 Play Time 00:24:44 Cumulative 279.8 hours Start 2025.11.24 @ 14:08:47 End 2025.11.24 @ 22:38:10 Sessions 3 Manual Loads 0 Difficulty Rogue Special Mode None Game No. 316 Rogue 316 Adventurer 0 Explorer 0 Win Type - Total 4 Types 4/0/0/0/0/0/0/0/0/0 Lore% 77 Gallery% 72 Achievement% 55 Wizard Run 0 Options --------- Layout 0 ASCII 0 Keyboard 1 Movement Vi Keybinds 0 Fullscreen 1 Font 18/SmallcapsGlow Map View 76x50 Zoom Use 0% Tactical HUD 1 Map Filters NONE Filters NONE Steam 1 RUN: 2174a64f-f2ea-4fc3-8836-fe1d0ae542d8